bitfinex/quotes_ETHUSD_20250331
["timestamp","ask_amount","ask_price","bid_price","bid_amount"]
[1743464666630,9.90384275,1827.5,1827.3,5.259]
[1743464666837,15.37603275,1827.5,1827.3,5.259]
[1743464667001,5.47225,1827.4,1827.3,5.259]
[1743464667710,8.00665832,1827.4,1827.3,5.259]
[1743464668118,2.53440832,1827.4,1827.3,5.259]
[1743464668323,2.53440832,1827.5,1827.3,5.259]
[1743464669404,8.00665832,1827.4,1827.3,5.259]
[1743464669635,8.00665832,1827.4,1827.2,6.11955158]
[1743464669831,5.47225,1827.4,1827.3,5.26]
[1743464670239,6.27995,1827.3,1827.2,10.55705158]
[1743464670422,10.71518145,1827.3,1827.2,10.55705158]
[1743464677820,11.26518145,1827.3,1827.2,10.55705158]
[1743464678348,11.26518145,1827.3,1827.2,5.259]
[1743464678524,13.04627852,1827.3,1827.2,5.259]
[1743464680321,5.47345,1827.0,1826.9,31.554]
[1743464680521,5.47389,1826.9,1826.8,5.26]
[1743464680765,10.94926,1826.7,1826.4,3.7615]
[1743464681054,5.47465,1826.6,1826.5,5.26]
[1743464682237,5.47465,1826.6,1826.2,37.03782]
[1743464682238,9.90988145,1826.6,1826.2,32.3235]
[1743464682558,15.38547145,1826.5,1826.3,5.26]
[1743464682748,10.95018,1826.5,1826.3,5.26]
[1743464682948,5.47505,1826.5,1826.3,5.26]
[1743464684426,10.9495,1826.6,1826.3,5.26]
[1743464684665,10.94897,1826.7,1826.3,9.565932]
[1743464684974,5.47413,1826.8,1826.4,6.23658]
[1743464685134,5.47437,1826.7,1826.4,6.23658]
[1743464685466,5.47413,1826.8,1826.5,14.5]
[1743464685665,5.47413,1826.8,1826.5,19.97494]
[1743464685966,5.47413,1826.8,1826.5,22.596092]
[1743464687583,5.47413,1826.8,1826.5,8.096092]
[1743464687880,5.47413,1826.8,1826.5,5.47494]
[1743464691250,1.0735392,1827.4,1826.6,0.7961]
[1743464691567,10.20123145,1827.7,1826.9,5.47363]
[1743464691568,5.21333145,1827.5,1826.9,5.47363]
[1743464691774,5.21333145,1827.5,1826.8,6.27012]
[1743464691775,10.94592,1827.2,1826.8,6.27012]
[1743464691974,10.94596,1827.2,1826.8,7.970564]
[1743464692284,5.47286,1827.2,1826.8,13.444484]
[1743464693159,5.47286,1827.2,1826.8,7.970464]
[1743464693576,9.90812145,1827.2,1826.8,0.7961]
[1743464693770,5.4733,1827.1,1826.8,0.7961]
[1743464696959,5.4733,1827.1,1826.8,6.27002]
[1743464697280,5.47287,1827.2,1826.8,6.27002]
[1743464697587,5.47319,1827.1,1826.8,6.26998]
[1743464698166,5.47319,1827.1,1826.8,0.7961]
[1743464698362,10.94595,1827.2,1826.8,6.27009]
[1743464698580,5.47317,1827.1,1826.8,6.27009]
[1743464699985,5.47317,1827.1,1826.9,5.259]
[1743464700291,5.47317,1827.1,1826.7,5.47418]
[1743464700292,4.43523145,1827.0,1826.6,0.7672]
[1743464700589,4.43523145,1827.0,1826.7,5.259]
[1743464700590,6.26352,1826.8,1826.7,5.259]
[1743464701388,0.7893,1826.8,1826.7,5.259]
[1743464701692,6.26335,1826.8,1826.7,5.259]
[1743464705592,5.47405,1826.8,1826.7,5.259]
[1743464706093,5.47379,1826.9,1826.7,5.259]
[1743464707198,5.47405,1826.8,1826.7,5.259]
[1743464708005,5.47476,1826.6,1826.4,31.568]
[1743464708159,5.47495,1826.5,1826.4,31.568]
[1743464708572,6.28095,1826.5,1826.4,36.827]
[1743464710470,7.10125,1826.5,1826.4,36.827]
[1743464711567,5.47579,1826.3,1826.0,3.0]
[1743464711768,5.47585,1826.2,1826.1,5.259]
[1743464714375,5.47627,1826.1,1825.9,0.8195]
[1743464714564,9.91178145,1826.0,1825.9,5.259]
[1743464714766,5.47705,1825.8,1825.5,6.24483]
[1743464715005,5.47705,1825.8,1825.6,5.259]
[1743464715364,10.9543,1825.8,1825.6,5.259]
[1743464715591,10.95498,1825.7,1825.5,0.7669]
[1743464715802,5.47765,1825.6,1825.4,0.51199976]
[1743464715979,9.91258145,1825.7,1825.5,5.259]
[1743464716182,5.47765,1825.6,1825.4,0.51199976]
[1743464716374,5.47795,1825.5,1825.4,0.51199976]
[1743464716788,5.47897,1825.2,1825.0,5.26]
[1743464717168,15.39276145,1825.3,1825.0,5.26]
[1743464717371,9.91399145,1825.3,1825.0,5.26]
[1743464717788,15.39277145,1825.3,1825.0,5.26]
[1743464718110,5.47946,1825.0,1824.7,6.25921]
[1743464718272,6.23817,1825.2,1824.9,5.26]
[1743464718471,5.47887,1825.2,1824.9,5.26]
[1743464718673,10.71988145,1825.3,1824.9,5.26]
[1743464718674,6.28465,1825.3,1824.9,10.7397]
[1743464718873,5.47855,1825.3,1824.9,10.7397]
[1743464719188,0.55,1825.6,1825.1,5.479]
[1743464719189,5.47822,1825.5,1825.1,5.479]
[1743464719408,5.47805,1825.5,1825.0,3.8127]
[1743464719567,5.47805,1825.5,1825.1,5.47897]
[1743464719771,9.91328145,1825.5,1825.1,5.47897]
[1743464721513,10.66728145,1825.5,1825.1,10.95796]
[1743464721710,10.66728145,1825.5,1825.1,5.47897]
[1743464721895,10.66728145,1825.5,1825.1,10.95799]
[1743464722208,10.66728145,1825.5,1825.2,5.47878]
[1743464722410,0.754,1825.5,1825.3,5.261]
[1743464722916,6.23195,1825.5,1825.3,5.261]
[1743464725104,9.91471145,1825.0,1824.6,10.74161]
[1743464725303,5.47987,1824.9,1824.6,5.261]
[1743464725621,9.91510145,1824.9,1824.6,5.261]
[1743464725817,9.91510145,1824.9,1824.5,11.76941]
[1743464726006,4.43523145,1824.9,1824.6,10.74261]
[1743464726222,9.91499145,1824.9,1824.6,10.74261]
[1743464726797,5.47976,1824.9,1824.6,10.74261]
[1743464727123,5.47976,1824.9,1824.7,5.262]
[1743464727288,6.33762351,1825.1,1824.7,5.262]
[1743464727490,5.47928,1825.1,1824.7,10.74223]
[1743464727694,9.91451145,1825.1,1824.7,16.2224]
[1743464728216,9.91451145,1825.1,1824.7,10.9604]
[1743464728526,9.91451145,1825.1,1824.8,5.262]
[1743464729024,9.91451145,1825.1,1824.8,10.74204]
[1743464729506,9.91451145,1825.1,1824.8,5.262]
[1743464730026,9.91451145,1825.1,1824.8,10.74203]
[1743464730348,9.91451145,1825.1,1824.8,5.262]
[1743464730501,9.91451145,1825.1,1824.8,11.54984]
[1743464731431,9.91470145,1825.0,1824.9,5.262]
[1743464731599,9.91470145,1825.0,1824.8,5.262]
[1743464731800,4.43523145,1824.9,1824.8,5.262]
[1743464732296,4.43523145,1825.0,1824.8,5.262]
[1743464733617,9.91481145,1825.0,1824.8,5.262]
[1743464733818,4.43523145,1825.0,1824.8,5.262]
[1743464734315,6.0535486,1825.1,1824.8,10.74205]
[1743464734625,5.4786,1825.3,1825.0,5.47945]
[1743464735124,9.91383145,1825.3,1825.0,5.47945]
[1743464735427,10.69130145,1825.4,1825.0,10.95873]
[1743464735726,16.16972145,1825.4,1825.0,10.95873]
[1743464735932,4.43523145,1825.4,1825.1,5.47902]
[1743464736240,4.43523145,1825.4,1825.2,5.263]
[1743464736929,9.91360145,1825.4,1825.2,5.263]
[1743464737133,4.43523145,1825.4,1825.2,5.263]
[1743464737435,9.91364145,1825.4,1825.2,5.263]
[1743464737598,4.43523145,1825.3,1825.2,5.263]
[1743464738100,9.91364145,1825.4,1825.2,5.263]
[1743464738397,11.70009456,1825.4,1825.2,5.263]
[1743464740097,6.22168456,1825.4,1825.2,5.263]
[1743464740608,1.78645311,1825.4,1825.2,5.263]
[1743464741506,10.68023145,1825.6,1825.3,5.47852]
[1743464741706,5.20253145,1825.6,1825.3,5.47852]
[1743464741902,1.09365654,1826.0,1825.7,0.7742]
[1743464742107,6.29544,1826.5,1826.0,6.25048]
[1743464742108,6.29528,1826.5,1826.0,6.25048]
[1743464742338,0.629528,1826.4,1826.1,5.47591]
[1743464742517,6.29528,1826.5,1826.2,5.273]
[1743464743309,0.8203,1826.5,1826.2,5.273]
[1743464743509,6.29531,1826.5,1826.2,5.273]
[1743464744347,0.8203,1826.5,1826.2,10.74876]
[1743464744526,0.8203,1826.5,1826.2,10.74866]
[1743464744847,0.8203,1826.5,1826.3,5.47533]
[1743464745061,0.8203,1826.5,1826.4,5.47525]
[1743464745817,0.8203,1826.5,1826.3,5.47533]
[1743464748561,7.18894533,1826.4,1826.3,5.263]
[1743464748847,8.43339301,1826.4,1826.3,5.263]
[1743464749225,2.95796301,1826.4,1826.3,5.263]
[1743464749426,1.71351533,1826.4,1826.3,5.263]
[1743464749851,1.71351533,1826.4,1825.7,4.3197261]
[1743464750153,1.71351533,1826.4,1825.9,5.47663]
[1743464750154,10.95147,1826.3,1825.9,5.47663]
[1743464750323,2.08520995,1826.2,1825.9,5.47663]
[1743464750524,2.08520995,1826.2,1825.9,5.47662]
[1743464750736,2.08520995,1826.2,1826.0,5.47644]
[1743464751754,5.47555,1826.3,1826.0,5.47643]
[1743464752657,5.47555,1826.3,1825.6,5.47758]
[1743464752658,0.7728,1826.2,1825.6,5.47758]
[1743464752962,5.4767,1826.0,1825.8,5.272]
[1743464754753,5.47618,1826.1,1825.8,5.272]
[1743464754952,5.47647,1826.0,1825.8,5.272]
[1743464755253,6.24867,1826.2,1825.8,10.74878]
[1743464755429,5.47583,1826.3,1825.9,6.2428]
[1743464755624,5.47583,1826.3,1825.9,11.71942]
[1743464755852,5.47583,1826.3,1826.0,5.47644]
[1743464756271,6.23516,1826.4,1826.0,10.95276]
[1743464756464,11.71059,1826.4,1826.0,5.47632]
[1743464756624,11.71059,1826.4,1826.0,6.648253]
[1743464757363,5.47569,1826.3,1826.0,1.171933]
[1743464757571,10.95153,1826.3,1826.0,1.171933]
[1743464757725,5.47569,1826.3,1826.0,1.171933]
[1743464757927,10.95141,1826.3,1826.0,1.171933]
[1743464758360,9.91122145,1826.2,1825.8,11.823878]
[1743464758531,5.47618,1826.1,1825.8,11.823878]
[1743464758863,10.95251,1826.1,1825.8,6.346878]
[1743464759054,5.47664,1826.0,1825.8,5.272]
[1743464759438,9.91198145,1825.9,1825.8,5.272]
[1743464759643,6.24581,1825.8,1825.5,5.263]
[1743464759968,6.24581,1825.8,1825.5,9.497021]
[1743464760150,5.47735,1825.7,1825.5,9.497021]
[1743464760359,6.24581,1825.8,1825.5,9.497021]
[1743464761065,11.72308,1825.8,1825.5,9.497021]
[1743464761561,6.24577,1825.8,1825.5,9.497021]
[1743464761866,6.24577,1825.8,1825.5,14.974961]
[1743464762164,6.24577,1825.8,1825.5,9.497021]
[1743464762362,5.47654,1826.0,1825.6,6.4272221]
[1743464762740,5.47628,1826.1,1825.7,6.25382]
[1743464763156,5.47628,1826.1,1825.7,11.73099]
[1743464763359,5.47628,1826.1,1825.8,5.47702]
[1743464763539,5.47628,1826.1,1825.9,5.274]
[1743464764471,6.23075,1826.2,1825.9,5.274]
[1743464764635,5.47622,1826.1,1825.9,5.274]
[1743464765266,5.47645,1826.0,1825.9,5.274]
[1743464768444,5.47622,1826.1,1825.9,5.274]
[1743464768780,5.47645,1826.0,1825.9,5.274]
[1743464771555,5.47622,1826.1,1825.9,5.274]
[1743464771759,5.47626,1826.1,1825.9,6.0948]
[1743464772181,5.47626,1826.1,1825.9,5.274]
[1743464774652,6.23086,1826.2,1825.9,5.274]
[1743464774886,5.47645,1826.0,1825.9,5.274]
[1743464775565,5.47693,1825.9,1825.6,0.9497021]
[1743464775758,5.47738,1825.7,1825.4,32.3664]
[1743464776082,10.95492,1825.7,1825.5,5.26]
[1743464776279,5.47738,1825.7,1825.5,5.26]
[1743464776654,10.95495,1825.7,1825.5,5.26]
[1743464777049,5.47708,1825.8,1825.5,5.26]
[1743464777300,5.47708,1825.8,1825.5,9.7133]
[1743464777586,10.9543,1825.8,1825.5,9.7133]
[1743464777984,5.47708,1825.8,1825.5,9.7133]
[1743464778200,5.47765,1825.6,1825.5,5.26]
[1743464778401,9.91288145,1825.6,1825.5,5.26]
[1743464778898,5.47765,1825.6,1825.5,5.26]
[1743464781085,6.24845,1825.6,1825.5,5.26]
[1743464781277,5.47735,1825.7,1825.5,5.26]
[1743464781456,10.95488,1825.7,1825.5,5.26]
[1743464782283,5.47765,1825.6,1825.5,5.26]
[1743464786400,10.95549,1825.6,1825.2,11.72484]
[1743464786561,10.95549,1825.6,1825.5,5.261]
[1743464786765,5.47765,1825.6,1825.5,5.261]
[1743464786964,10.95552,1825.6,1825.2,7.418594]
[1743464787269,5.47765,1825.6,1825.3,5.261]
[1743464787612,5.47765,1825.6,1825.3,10.73953]
[1743464787901,5.47765,1825.6,1825.3,12.5551924]
[1743464788103,5.4774,1825.7,1825.3,18.0335824]
[1743464788309,10.95493,1825.7,1825.3,18.0335824]
[1743464788702,9.91232145,1825.8,1825.4,5.47824]
[1743464788865,9.91232145,1825.8,1825.5,0.8128]
[1743464789071,5.47709,1825.8,1825.5,6.29072]
[1743464789317,6.78855,1825.7,1825.6,5.261]
[1743464789608,10.95567,1825.6,1825.2,7.464004]
[1743464789793,5.47782,1825.6,1825.3,5.261]
[1743464790170,10.95563,1825.6,1825.3,5.261]
[1743464790370,5.47781,1825.6,1825.3,10.73953]
[1743464790599,5.47781,1825.6,1825.3,12.5598794]
[1743464791003,5.47735,1825.7,1825.4,5.47823]
[1743464791324,3.41759464,1826.0,1825.4,5.47823]
[1743464791325,5.47594,1826.2,1825.8,5.47691]
[1743464791481,5.47616,1826.1,1825.9,6.0766]
[1743464791677,5.47645,1826.0,1825.7,0.8156]
[1743464791881,10.95317,1826.0,1825.8,5.261]
[1743464792079,5.47645,1826.0,1825.8,5.261]
[1743464799999,5.47645,1826.0,1825.7,1.992666]
[1743464800176,5.47712,1825.8,1825.5,6.3009]
[1743464800382,5.47712,1825.8,1825.6,5.261]
[1743464800891,9.91235145,1825.8,1825.6,5.261]
[1743464802688,9.91235145,1825.8,1825.7,5.26]
[1743464805796,5.47712,1825.8,1825.7,5.26]
[1743464806503,5.47678,1825.9,1825.7,5.26]
[1743464806710,10.95371,1825.9,1825.7,5.26]
[1743464806902,5.47678,1825.9,1825.7,5.26]
[1743464807623,10.95371,1825.9,1825.7,5.26]
[1743464811419,5.47705,1825.8,1825.7,5.26]
[1743464815106,5.47678,1825.9,1825.7,5.26]
[1743464815320,5.47675,1825.9,1825.7,6.0112]
[1743464816025,6.24756,1825.8,1825.3,1.8203494]
[1743464816221,6.24756,1825.8,1825.1,32.3806]
[1743464816222,5.47885,1825.2,1825.1,31.591]
[1743464816519,5.47885,1825.2,1825.1,36.851]
[1743464817215,5.47867,1825.3,1825.1,36.851]
[1743464817416,10.95741,1825.3,1825.1,36.851]
[1743464817722,5.47867,1825.3,1825.1,36.851]
[1743464817890,5.47885,1825.2,1825.1,36.851]
[1743464818598,15.39263145,1825.3,1825.1,36.851]
[1743464820423,5.47864,1825.3,1825.1,6.0908]
[1743464820601,5.47885,1825.2,1825.1,0.8298]
[1743464820925,10.95876,1825.1,1824.7,6.72002505]
[1743464821120,5.47938,1825.1,1824.8,5.261]
[1743464821326,5.47938,1825.1,1824.8,10.74105]
[1743464821527,5.20063145,1825.2,1824.7,1.23984505]
[1743464821696,5.47975,1824.9,1824.8,5.261]
[1743464822026,6.24515,1824.9,1824.8,5.261]
[1743464823294,0.8323,1825.4,1824.9,0.7623]
[1743464823499,5.47867,1825.3,1824.9,6.24192]
[1743464823719,5.47867,1825.3,1824.9,7.940216]
[1743464823922,10.95747,1825.3,1824.9,7.940216]
[1743464824426,10.95747,1825.3,1824.9,7.940156]
[1743464824427,10.95744,1825.3,1824.9,7.940156]
[1743464824627,5.47892,1825.2,1824.9,7.940156]
[1743464824828,5.47892,1825.2,1824.9,2.460596]
[1743464825829,5.47892,1825.2,1824.9,7.940326]
[1743464826219,5.47892,1825.2,1825.0,5.261]
[1743464827331,5.47867,1825.3,1825.0,5.261]
[1743464827628,5.47889,1825.2,1825.0,5.261]
[1743464828331,5.47867,1825.3,1825.0,10.74043]
[1743464828531,5.47829,1825.4,1825.0,6.5811316]
[1743464828718,5.47866,1825.3,1825.0,5.261]
[1743464829120,5.47899,1825.2,1825.0,5.261]
[1743464829519,5.47915,1825.1,1825.0,5.261]
[1743464829833,10.95735,1825.3,1825.0,5.261]
[1743464830141,5.47861,1825.3,1825.0,10.74044]
[1743464830831,9.91349145,1825.4,1825.0,10.74028]
[1743464831136,5.47856,1825.3,1825.0,11.56448]
[1743464831336,5.47856,1825.3,1825.0,6.0852]
[1743464831524,5.47886,1825.2,1825.0,5.261]
[1743464831724,5.47856,1825.3,1825.0,5.261]
[1743464832233,10.9573,1825.3,1825.0,5.261]
[1743464832616,5.47856,1825.3,1825.0,5.261]
[1743464832815,10.95729,1825.3,1825.0,5.261]
[1743464833016,6.24803,1825.2,1825.0,5.261]
[1743464833640,11.73518,1825.4,1825.0,10.74039]
[1743464833942,5.47894,1825.2,1825.0,5.261]
[1743464834513,5.47915,1825.1,1825.0,5.261]
[1743464834714,5.47894,1825.2,1825.0,5.261]
[1743464836235,10.95741,1825.3,1825.0,5.261]
[1743464836433,5.47859,1825.3,1825.0,5.261]
[1743464836618,5.47859,1825.3,1825.1,0.8171]
[1743464837336,5.47931,1825.1,1824.9,0.8171]
[1743464837654,5.47931,1825.1,1825.0,5.262]
[1743464842660,5.21373145,1825.1,1824.5,0.8171]
[1743464842971,5.48015,1824.8,1824.6,5.262]
[1743464843171,10.96037,1824.8,1824.6,5.262]
[1743464843332,5.48015,1824.8,1824.6,5.262]
[1743464844268,5.48094,1824.6,1824.4,5.262]
[1743464845055,5.4804,1824.7,1824.4,5.262]
[1743464845366,5.4804,1824.7,1824.4,6.418065]
[1743464845534,10.96095,1824.7,1824.4,6.418065]
[1743464845734,5.4804,1824.7,1824.4,6.418065]
[1743464845930,5.4804,1824.7,1824.4,11.899305]
[1743464846571,10.96093,1824.7,1824.4,6.418065]
[1743464846769,10.96093,1824.7,1824.4,5.262]
[1743464847569,10.96094,1824.7,1824.4,5.262]
[1743464848267,5.48067,1824.6,1824.4,5.262]
[1743464849268,5.48108,1824.5,1824.3,0.8171]
[1743464849566,5.48067,1824.6,1824.5,5.263]
[1743464850574,9.91559145,1824.7,1824.5,5.263]
[1743464850947,6.25858,1824.8,1824.5,5.263]
[1743464851375,11.7389,1824.8,1824.5,5.263]
[1743464851564,5.48039,1824.7,1824.5,5.263]
[1743464852250,5.48008,1824.8,1824.5,11.818265]
[1743464852875,9.91501145,1824.9,1824.6,0.773]
[1743464853447,5.48009,1824.8,1824.6,0.773]
[1743464854360,5.48009,1824.8,1824.5,10.74383]
[1743464854562,10.96036,1824.8,1824.5,5.263]
[1743464855282,5.48041,1824.7,1824.5,5.263]
[1743464855486,9.91564145,1824.7,1824.5,5.263]
[1743464855654,16.19036145,1824.7,1824.5,5.263]
[1743464857385,10.70984145,1824.7,1824.5,5.263]
[1743464857885,16.19041145,1824.7,1824.5,5.263]
[1743464858281,5.48041,1824.7,1824.5,5.263]
[1743464859164,10.96094,1824.7,1824.5,5.263]
[1743464860790,5.48041,1824.7,1824.5,5.263]
[1743464861170,9.91530145,1824.8,1824.5,5.263]
[1743464861372,15.39552145,1824.8,1824.5,5.263]
[1743464861570,5.48048,1824.7,1824.5,5.263]
[1743464862180,10.961,1824.7,1824.5,5.263]
[1743464862490,5.48065,1824.6,1824.5,5.263]
[1743464865612,5.48065,1824.6,1824.3,5.48154]
[1743464867729,10.96148,1824.6,1824.2,12.30397857]
[1743464867916,5.48065,1824.6,1824.2,14.06067643]
[1743464868086,5.48065,1824.6,1824.2,13.54776786]
[1743464868291,5.48065,1824.6,1824.3,5.48149]
[1743464868495,5.48065,1824.6,1824.2,8.06602786]
[1743464868815,5.48065,1824.6,1824.3,5.48154]
[1743464869211,1.175944,1824.6,1824.2,0.8276]
[1743464869414,4.43523145,1824.3,1823.9,32.3709]
[1743464869622,5.48197,1824.2,1824.0,5.263]
[1743464869794,5.48124,1824.5,1824.0,5.263]
[1743464869795,5.48113,1824.5,1824.2,0.7619]
[1743464870116,6.30519,1824.7,1824.3,5.48144]
[1743464870320,5.48095,1824.5,1824.4,5.263]
[1743464872921,15.39682145,1824.6,1824.4,5.263]
[1743464873134,15.39677145,1824.6,1824.4,5.263]
[1743464873520,5.48095,1824.5,1824.4,5.263]
[1743464877215,5.48095,1824.5,1824.3,5.264]
[1743464877216,5.48125,1824.4,1824.3,5.264]
[1743464877408,5.48165,1824.3,1824.0,6.2957]
[1743464877609,10.96269,1824.4,1824.1,5.264]
[1743464878226,5.48215,1824.1,1823.9,31.609]
[1743464878422,5.48215,1824.1,1824.0,5.263]
[1743464879843,5.48197,1824.2,1824.0,5.263]
[1743464880048,10.96399,1824.2,1824.0,5.263]
[1743464880254,5.48197,1824.2,1824.0,5.263]
[1743464881328,5.48215,1824.1,1824.0,5.263]
[1743464881561,0.7863,1824.0,1823.6,0.7852]
[1743464881856,0.7863,1824.0,1823.7,5.264]
[1743464881857,5.48333,1823.8,1823.7,5.264]
[1743464882158,5.48245,1824.0,1823.7,11.55069]
[1743464882356,5.4826,1824.0,1823.7,6.0675]
[1743464882664,10.96528,1824.0,1823.7,6.0675]
[1743464882959,5.48281,1823.9,1823.7,6.0675]
[1743464883530,10.96405,1824.2,1823.8,5.48288]
[1743464883857,5.48217,1824.1,1823.7,12.705919]
[1743464884270,5.48128,1824.4,1824.0,5.48228]
[1743464884431,5.48128,1824.4,1824.1,6.058]
[1743464884765,11.510908,1824.4,1824.1,6.058]
[1743464884965,5.48166,1824.3,1824.1,6.058]
[1743464885470,11.510838,1824.4,1824.1,6.058]
[1743464885639,5.48155,1824.3,1824.1,6.058]
[1743464887367,11.510848,1824.4,1824.1,6.058]
[1743464887569,6.029408,1824.4,1824.1,6.058]
[1743464887739,11.510848,1824.4,1824.1,6.058]
[1743464887940,6.029408,1824.4,1824.1,6.058]
[1743464888472,5.4817,1824.3,1824.1,6.058]
[1743464888669,10.96346,1824.3,1824.1,5.266]
[1743464888869,12.1146188,1824.3,1824.1,5.266]
[1743464889272,6.6328588,1824.3,1824.1,5.266]
[1743464889872,5.4817,1824.3,1824.1,5.266]
[1743464891146,5.48128,1824.4,1824.1,5.266]
[1743464891776,5.48128,1824.4,1824.1,10.74813]
[1743464892073,0.7744,1824.3,1823.8,4.3197261]
[1743464892261,5.48228,1824.1,1823.9,5.276]
[1743464892665,10.96462,1824.1,1823.9,5.276]
[1743464892865,5.48228,1824.1,1823.9,5.276]
[1743464893170,10.96387,1824.2,1823.9,5.276]
[1743464893373,5.48191,1824.2,1823.9,10.75874]
[1743464893580,5.48191,1824.2,1823.9,10.75861]
[1743464894353,5.48191,1824.2,1823.9,5.276]
[1743464894876,10.96394,1824.2,1823.9,5.276]
[1743464896651,5.48234,1824.1,1823.9,5.276]
[1743464897360,5.48189,1824.2,1823.9,5.276]
[1743464897560,5.48189,1824.2,1823.9,10.7587]
[1743464897760,5.48159,1824.3,1824.0,0.8038]
[1743464898086,5.4813,1824.4,1824.0,6.34102998]
[1743464898380,5.48163,1824.3,1824.0,6.28621]
[1743464898752,10.96336,1824.3,1824.0,0.8038]
[1743464898952,5.48163,1824.3,1824.0,0.8038]
[1743464899357,10.9634,1824.3,1824.0,0.8038]
[1743464899655,5.48185,1824.2,1824.0,0.8038]
[1743464900582,10.96341,1824.3,1824.0,0.8038]
[1743464901059,5.48163,1824.3,1824.0,0.8038]
[1743464901570,5.48163,1824.3,1824.0,6.28616]
[1743464901773,6.29899,1824.6,1824.2,5.48164]
[1743464901977,5.48097,1824.5,1824.3,6.0598]
[1743464904684,5.48068,1824.6,1824.3,11.54128]
[1743464905060,10.9616,1824.6,1824.3,6.0598]
[1743464906180,5.48068,1824.6,1824.3,6.0598]
[1743464907394,5.53133745,1824.6,1824.1,0.7819]
[1743464907690,5.48147,1824.4,1824.2,5.264]
[1743464911293,5.48147,1824.4,1824.3,5.264]
[1743464921723,6.261,1824.5,1824.3,5.264]
[1743464922515,5.481,1824.5,1824.3,5.264]
[1743464922902,5.48125,1824.4,1824.3,5.264]
[1743464923103,5.48171,1824.3,1823.9,11.73565]
[1743464923307,5.48171,1824.3,1824.0,5.264]
[1743464923706,10.96346,1824.3,1824.0,5.264]
[1743464924030,5.48171,1824.3,1824.0,10.74644]
[1743464924593,0.7999,1824.6,1824.1,0.8360196]
[1743464924825,5.48074,1824.6,1824.2,5.48157]
[1743464924993,10.96156,1824.6,1824.2,6.107847]
[1743464925195,10.96112,1824.7,1824.4,0.7812]
[1743464925500,10.96111,1824.7,1824.5,5.264]
[1743464925729,5.48049,1824.7,1824.5,5.264]
[1743464926317,10.96103,1824.7,1824.5,5.264]
[1743464927025,5.48065,1824.6,1824.5,5.264]
[1743464927722,5.48049,1824.7,1824.5,5.264]
[1743464928728,10.96103,1824.7,1824.5,5.264]
[1743464929299,5.48049,1824.7,1824.5,5.264]
[1743464930030,5.48065,1824.6,1824.5,5.264]
[1743464930828,5.48197,1824.2,1824.0,0.7823]
[1743464931034,5.48197,1824.2,1824.1,5.264]
[1743464931201,6.28807,1824.3,1824.1,5.264]
[1743464931613,11.76979,1824.3,1824.1,5.264]
[1743464934438,5.48185,1824.2,1824.0,0.7823]
[1743464934730,5.48185,1824.2,1824.1,5.264]
[1743464936231,6.28807,1824.3,1824.1,5.264]
[1743464936433,5.48185,1824.2,1824.1,5.264]
[1743464938749,5.48157,1824.3,1824.1,5.264]
[1743464939442,10.96329,1824.3,1824.1,5.264]
[1743464940121,5.48185,1824.2,1824.1,5.264]
[1743464943542,5.48157,1824.3,1824.1,5.264]
[1743464943736,10.96331,1824.3,1824.1,5.264]
[1743464943943,5.48157,1824.3,1824.1,6.0238]
[1743464944110,10.96329,1824.3,1824.1,6.0238]
[1743464944311,10.96332,1824.3,1824.1,6.0238]
[1743464944629,5.48185,1824.2,1824.1,6.0238]
[1743464946320,10.96339,1824.3,1824.1,6.0238]
[1743464946922,10.96339,1824.3,1824.1,5.264]
[1743464947544,5.48185,1824.2,1824.1,5.264]
[1743464948044,5.48137,1824.4,1824.1,5.264]
[1743464948346,10.9628,1824.4,1824.1,5.264]
[1743464948550,6.30631,1824.5,1824.1,10.74606]
[1743464948737,5.48101,1824.5,1824.1,11.95144232]
[1743464948935,10.96219,1824.5,1824.1,11.896626]
[1743464949124,5.48126,1824.4,1824.1,11.896626]
[1743464949323,10.96267,1824.4,1824.1,6.414566]
[1743464949518,10.96267,1824.4,1824.1,5.264]
[1743464949724,5.48157,1824.3,1824.1,5.264]
[1743464950217,6.29808,1824.4,1824.1,5.264]
[1743464950757,5.48156,1824.3,1824.1,5.264]
[1743464951446,6.29808,1824.4,1824.1,5.264]
[1743464951672,6.29808,1824.4,1824.1,10.74615]
[1743464952856,11.77953,1824.4,1824.1,5.264]
[1743464953872,6.29808,1824.4,1824.1,5.264]
[1743464954194,6.29808,1824.4,1824.1,10.74608]
[1743464954698,11.77952,1824.4,1824.1,5.264]
[1743464955402,11.77949,1824.4,1824.1,5.264]
[1743464955781,6.29808,1824.4,1824.1,5.264]
[1743464956999,10.96207,1824.5,1824.1,10.74609]
[1743464957299,5.481,1824.5,1824.1,17.926901]
[1743464957457,5.481,1824.5,1824.2,0.84861379]
[1743464957884,5.481,1824.5,1824.2,6.33037379]
[1743464958154,5.48071,1824.6,1824.2,6.33031379]
[1743464958363,10.96153,1824.6,1824.2,6.2755]
[1743464958662,10.96153,1824.6,1824.2,8.1475401]
[1743464960585,9.91569145,1824.7,1824.3,5.48153]
[1743464960889,9.91569145,1824.7,1824.4,5.48121]
[1743464961069,15.39622145,1824.7,1824.5,5.263]